Workbook

Sheet Меню ГПД!!
A1: Примерное двухнедельное цикличное меню для группы продленного дня
A3: 1 неделя
A4: № Сб.рец | B4: Наименование продуктов | C4: Выход,г | D4: Белки | E4: Жиры | F4: Угл-ды | G4: Энер.ценность (ККАЛ) | H4: В1 | I4: С | J4: А | K4: Е | L4: Са | M4: Р | N4: Mg | O4: Fe
B5: Понедельник
B6: Меню дополнительного питания
A7: № 111/2004 | B7: Борщ Сибирский со сметаной, с мясом | C7: 250/10/11 | D7: 7.88 | E7: 6.99 | F7: 13.06 | G7: 119 | H7: 0.03 | I7: 9.6 | J7: 1.3 | K7: 0.8 | L7: 50.3 | M7: 170.9 | N7: 23.5 | O7: 1
A8: табл 24/1996 | B8: Каша манная молочная с маслом сливочным | C8: 200/10 | D8: 9.9 | E8: 9.8 | F8: 41.8 | G8: 294 | H8: 0.1 | K8: 1.65 | L8: 28.5 | M8: 105 | N8: 43.5 | O8: 1.2
A9: № 639/2004 | B9: Компот из урюка | C9: 200 | D9: 1.2 | F9: 32.6 | G9: 196 | H9: 0.02 | I9: 0.8 | K9: 1.1 | L9: 32.6 | M9: 29.2 | N9: 21 | O9: 1.2
A10: табл 6 стр 144 Дели +,2012 | B10: Хлеб сельский/белый | C10: 20/20 | D10: 2.9 | E10: 0.8 | F10: 17 | G10: 90 | H10: 0.04 | K10: 0.4 | L10: 9.4 | M10: 42 | N10: 12 | O10: 1.04
B11: Итого: | C11: 721 | D11: =SUM(D7:D10) -> 21.88 | E11: =SUM(E7:E10) -> 17.59 | F11: 104.46 | G11: 699.00 | H11: 0.19 | I11: 10.40 | J11: 1.30 | K11: 3.95 | L11: 120.80 | M11: 347.10 | N11: 100.00 | O11: 4.44
B13: ВТОРНИК
B14: Меню дополнительного питания
A15: 113/2017 | B15: Суп - лапша с картофелем с мясом птицы | C15: 250/10 | D15: 4.675 | E15: 6.9 | F15: 11.62 | G15: 136.42 | H15: 0.053 | I15: 0.5 | J15: 14.5 | K15: 2.575 | L15: 32.45 | M15: 52.8 | N15: 12.67 | O15: 0.83
A16: № 340/2004 | B16: Омлет натуральный | C16: 200 | D16: 20.00 | E16: 16.00 | F16: 66.53 | G16: 397.33 | H16: 0.01 | I16: 0.01 | J16: 48.00 | K16: 0.40 | L16: 37.33 | M16: 81.07 | N16: 6.13 | O16: 0.91
A17: 243/2017 | B17: Сосиски отварная | C17: 100 | D17: 12 | E17: 7.6 | F17: 16 | G17: 180 | H17: 0.3 | K17: 0.5 | L17: 33.4 | M17: 182.8 | N17: 19.78 | O17: 2.4
A18: № 639/2004 | B18: Напиток из сухофруктов | C18: 200 | D18: 0.85 | E18: 0.03 | F18: 34.8 | G18: 143 | H18: 0.06 | K18: 0.1 | L18: 16.5 | M18: 25.8 | N18: 8.4 | O18: 0.7
A19: табл 6 стр 144 Дели +,2012 | B19: Хлеб сельский/белый | C19: 20/20 | D19: 2.9 | E19: 0.8 | F19: 17 | G19: 90 | H19: 0.04 | K19: 0.4 | L19: 9.4 | M19: 42 | N19: 12 | O19: 1.04
B20: Итого: | C20: 800 | D20: =D15+D16+D17+D18+D19 -> 40.43 | E20: =E15+E16+E17+E18+E19 -> 31.33 | F20: 145.95 | G20: 946.75 | H20: 0.47 | I20: 0.51 | J20: 62.50 | K20: 3.98 | L20: 129.08 | M20: 384.47 | N20: 58.98 | O20: 5.88
B22: СРЕДА
B23: Меню дополнительного питания
A24: № 243/2004 | B24: Суп гороховый с гренками, с мясными фрикадельками | C24: 250/10/22 | D24: 5.9 | E24: 6.5 | F24: 20.9 | G24: 232 | H24: 0.12 | I24: 0.8 | K24: 0.8 | L24: 66 | M24: 262 | N24: 38 | O24: 1.8
A25: 174/ 2017 | B25: Каша молочная кукурузная с маслом сливочным | C25: 200/3 | D25: 7.6 | E25: 8.925 | F25: 50.74 | G25: 314.2 | H25: 0.09 | I25: 0.96 | J25: 42.8 | K25: 0.37 | L25: 137.75 | M25: 152.71 | N25: 31.61 | O25: 1.67
A26: № 478/2004 | B26: Булочка с сахаром | C26: 50 | D26: 3.88 | E26: 2.36 | F26: 23.55 | G26: 131 | H26: 0.07 | J26: 13 | K26: 0.69 | L26: 11 | M26: 37 | N26: 14.5 | O26: 0.69
A27: Акт 2016 | B27: Компот из кураги | C27: 200 | D27: 0.56 | E27: 0.07 | F27: 24.87 | G27: 106.6 | H27: 0.1 | I27: 0.5 | K27: 0.45 | L27: 26.32 | M27: 20.63 | N27: 12.84 | O27: 0.47
A28: табл 6 стр 144 Дели +,2012 | B28: Хлеб сельский/белый | C28: 20/20 | D28: 2.9 | E28: 0.8 | F28: 17 | G28: 90 | H28: 0.04 | K28: 0.4 | L28: 9.4 | M28: 42 | N28: 12 | O28: 1.04
B29: Итого: | C29: 775 | D29: =SUM(D24:D28) -> 20.84 | E29: =SUM(E24:E28) -> 18.66 | F29: 137.06 | G29: 873.80 | H29: 0.42 | I29: 2.26 | J29: 55.80 | K29: 2.71 | L29: 250.47 | M29: 514.34 | N29: 108.95 | O29: 5.67
B31: ЧЕТВЕРГ
B32: Меню дополнительного питания
A33: № 132/2004 | B33: Рассольник ленинградский со сметаной | C33: 250/10 | D33: 3.9 | E33: 2.1 | F33: 38.9 | G33: 151.3 | H33: 0.06 | I33: 5.34 | J33: 13.4 | K33: 0.2 | L33: 11.5 | M33: 49.8 | N33: 17.8 | O33: 0.68
A34: ТТК 656 от 28.04.2020 | B34: Блины со сгущенным молоком | C34: 135/20 | D34: 12.8 | E34: 13.9 | F34: 53.8 | G34: 369 | H34: 0.09 | K34: 1.7 | L34: 7 | M34: 63 | N34: 25 | O34: 1.4
A35: №685/2004 | B35: Чай с сахаром | C35: 200/15 | D35: 0.2 | F35: 13.7 | G35: 53 | L35: 0.4 | O35: 0.4
A36: табл 6 стр 144 Дели +,2012 | B36: Хлеб сельский/белый | C36: 20/20 | D36: 2.9 | E36: 0.8 | F36: 17 | G36: 90 | H36: 0.04 | K36: 0.4 | L36: 9.4 | M36: 42 | N36: 12 | O36: 1.04
B37: Итого: | C37: 670 | D37: =SUM(D33:D36) -> 19.80 | E37: =SUM(E33:E36) -> 16.80 | F37: 123.40 | G37: 663.30 | H37: 0.19 | I37: 5.34 | J37: 13.40 | K37: 2.30 | L37: 28.30 | M37: 154.80 | N37: 54.80 | O37: 3.52
B39: ПЯТНИЦА
B40: Меню дополнительного питания
A41: №99 /2017 | B41: Суп из овощей со сметаной | C41: 250/10 | D41: 1.847 | E41: 6.49 | F41: 9.51 | G41: 111.45 | H41: 0.073 | I41: 10.415 | J41: 10 | K41: 2.355 | L41: 43.65 | M41: 55.38 | N41: 21.65 | O41: 0.795
A42: Т4/302/2004 | B42: Каша пшеничная молочная | C42: 200 | D42: 8.28 | E42: 12.49 | F42: 39.96 | G42: 250.00 | H42: 0.11 | I42: 0.15 | J42: 52.8 | K42: 0.2 | L42: 94.1 | M42: 121 | N42: 32.1 | O42: 0.86
A43: Акт 2019г | B43: Курица отварная | C43: 100 | D43: 21.98 | E43: 18.01 | F43: 0.36 | G43: 248.00 | H43: 0.06 | I43: 4.7 | J43: 51.2 | K43: 0.27 | L43: 55.2 | M43: 122.5 | N43: 5.4 | O43: 1.48
A44: табл 6 стр 144 Дели +,2012 | B44: Хлеб сельский/белый | C44: 20/20 | D44: 2.9 | E44: 0.8 | F44: 17 | G44: 90.00 | H44: 0.04 | K44: 0.4 | L44: 9.4 | M44: 42 | N44: 12 | O44: 1.04
A45: Акт 2016 | B45: Кисель детский витаминизированный | C45: 200 | F45: 19.7 | G45: 74.00 | L45: 0.2 | O45: 0.03
B46: Итого: | C46: 800 | D46: =SUM(D41:D45) -> 35.01 | E46: =SUM(E41:E45) -> 37.79 | F46: 86.53 | G46: 773.45 | H46: 0.28 | I46: 15.27 | J46: 114.00 | K46: 3.23 | L46: 202.55 | M46: 340.88 | N46: 71.15 | O46: 4.21
B48: СУББОТА
B49: Меню дополнительного питания
A50: 98/2017 | B50: Суп крестьянский с крупой со сметаной | C50: 250/10 | D50: 1.743 | E50: 6.417 | F50: 6.45 | G50: 92.45 | H50: 0.046 | I50: 9.915 | J50: 10 | K50: 2.33 | L50: 44.675 | M50: 39.675 | N50: 15.08 | O50: 0.595
A51: №3 /2017 | B51: Бутерброд с сыром | C51: 50 | D51: 6.27 | E51: 7.86 | F51: 14.83 | G51: 155.00 | H51: 0.04 | I51: 0.15 | J51: 51.5 | K51: 0.45 | L51: 157.2 | M51: 111 | N51: 12.45 | O51: 0.45
A52: табл 4/302/2004 | B52: Каша геркулесовая молочная с маслом сливочным | C52: 200/5 | D52: 11.9 | E52: 6.1 | F52: 35.6 | G52: 230.00 | H52: 0.1 | I52: 0.17 | J52: 54.6 | K52: 0.5 | L52: 69.8 | M52: 130 | N52: 37.1 | O52: 0.87
A53: № 639/2004 | B53: Напиток из сухофруктов | C53: 200 | D53: 0.85 | E53: 0.03 | F53: 34.8 | G53: 143.00 | H53: 0.06 | K53: 0.1 | L53: 16.5 | M53: 25.8 | N53: 8.4 | O53: 0.7
B54: Итого: | C54: 715 | D54: =SUM(D50:D53) -> 20.76 | E54: =SUM(E50:E53) -> 20.41 | F54: 91.68 | G54: 620.45 | H54: 0.25 | I54: 10.24 | J54: 116.10 | K54: 3.38 | L54: 288.18 | M54: 306.48 | N54: 73.03 | O54: 2.62
B56: Всего за 6 дней: | C56: =C11+C20+C29+C37+C46+C54 -> 4481 | D56: =D11+D20+D29+D37+D46+D54 -> 158.72 | E56: =E11+E20+E29+E37+E46+E54 -> 142.57 | F56: 689.08 | G56: 4,576.75 | H56: 1.80 | I56: 44.01 | J56: 363.10 | K56: 19.54 | L56: 1,019.38 | M56: 2,048.06 | N56: 466.91 | O56: 26.33
A58: 2 неделя
B59: Понедельник
B60: Меню дополнительного питания
A61: №82/2017 | B61: Борщ из свежей капусты с мясными фрикадельками,со сметаной | C61: 250/11/10 | D61: 4.257 | E61: 7.709 | F61: 11.37 | G61: 141.77 | H61: 0.06 | I61: 10.77 | J61: 12.2 | K61: 2.5 | L61: 60.89 | M61: 83.54 | N61: 30.57 | O61: 1.42
A62: 174/ 2017 | B62: Каша молочная кукурузная с маслом сливочным | C62: 200/3 | D62: 7.6 | E62: 8.925 | F62: 50.74 | G62: 314.20 | H62: 0.09 | I62: 0.96 | J62: 42.8 | K62: 0.37 | L62: 137.75 | M62: 152.71 | N62: 31.61 | O62: 1.67
A63: Акт 2016 | B63: Компот из урюка | C63: 200 | D63: 0.2 | F63: 13.7 | G63: 53.00 | L63: 0.4 | O63: 0.4
A64: табл 6 стр 144 Дели +,2012 | B64: Хлеб сельский/белый | C64: 20/20 | D64: 2.9 | E64: 0.8 | F64: 17 | G64: 90.00 | H64: 0.04 | K64: 0.4 | L64: 9.4 | M64: 42 | N64: 12 | O64: 1.04
B65: Итого: | C65: 714 | D65: =SUM(D61:D64) -> 14.96 | E65: 17.43 | F65: 92.81 | G65: 598.97 | H65: 0.19 | I65: 11.73 | J65: 55.00 | K65: 3.27 | L65: 208.44 | M65: 278.25 | N65: 74.18 | O65: 4.53
B67: ВТОРНИК
B68: Меню дополнительного питания
A69: №97/2017 | B69: Суп картофельный с мясом птицы | C69: 250/10 | D69: 4.45 | E69: 4.187 | F69: 16.87 | G69: 134.66 | H69: 0.132 | I69: 12 | J69: 2 | K69: 1.305 | L69: 34.35 | M69: 92.03 | N69: 33.4 | O69: 1.38
A70: № 366/2004 | B70: Запеканка из творога со сгущенным молоком | C70: 150/20 | D70: 18.80 | E70: 18.67 | F70: 78.80 | G70: 549.33 | H70: 0.08 | I70: 0.27 | J70: 101.07 | K70: 0.00 | L70: 188.00 | M70: 243.60 | N70: 29.47 | O70: 0.71
A71: № 686/2004 | B71: Чай с сахаром, лимоном | C71: 200/15/7 | D71: 0.2 | E71: 0.1 | F71: 13.9 | G71: 55 | I71: 1.12 | L71: 2.9 | M71: 1.3 | N71: 0.7 | O71: 0.08
A72: табл 6 стр 134 Дели +,2012 | B72: Батон высший сорт | C72: 30 | D72: 2.25 | E72: 0.87 | F72: 15.42 | G72: 79 | H72: 0.02 | K72: 0.2 | L72: 4.7 | M72: 21.1 | N72: 6.3 | O72: 0.52
B73: Итого: | C73: 682 | D73: =SUM(D69:D72) -> 25.70 | E73: =SUM(E69:E72) -> 23.82 | F73: 124.99 | G73: 817.99 | H73: 0.23 | I73: 13.39 | J73: 103.07 | K73: 1.51 | L73: 229.95 | M73: 358.03 | N73: 69.87 | O73: 2.69
B75: СРЕДА
B76: Меню дополнительного питания
A77: № 140/2004 | B77: Суп из овощей с фрикадельками мясными | C77: 250/11 | D77: 7.6 | E77: 36.5 | F77: 198 | G77: 0.02 | H77: 8 | I77: 14.7 | J77: 0.3 | K77: 23.9 | L77: 39 | M77: 13 | N77: 0.54
A78: 174/2017 | B78: Каша кукурузная молочная с маслом сливочным | C78: 200/5 | D78: 5.69 | E78: 5.79 | F78: 38.0 | G78: 227.4 | H78: 0.07 | I78: 0.7 | J78: 27.1 | K78: 0.55 | L78: 103.0 | M78: 114.2 | N78: 23.7 | O78: 1.25
A79: Акт 2016 | B79: Кисель детский витаминизированный | C79: 200 | F79: 19.7 | G79: 74 | L79: 0.2 | O79: 0.03
A80: табл 6 стр 144 Дели +,2012 | B80: Хлеб сельский/белый | C80: 30/30 | D80: 4.3 | E80: 1.3 | F80: 25.4 | G80: 136 | H80: 0.06 | K80: 0.6 | L80: 14.1 | M80: 63 | N80: 18 | O80: 1.56
B81: Итого: | C81: 726 | D81: =SUM(D77:D80) -> 17.59 | E81: =SUM(E77:E80) -> 43.59 | F81: 281.14 | G81: 437.42 | H81: 8.13 | I81: 15.42 | J81: 27.40 | K81: 25.05 | L81: 156.31 | M81: 190.16 | N81: 42.25 | O81: 2.84
B83: ЧЕТВЕРГ
B84: Меню дополнительного питания
A85: № 140/2004 | B85: Суп картофельный с макаронными изделиями,фрикадельками из птицы | C85: 200/22 | D85: 3.5 | E85: 32.5 | F85: 173.0 | G85: 0.06 | H85: 5.28% | I85: 8.5 | J85: 0.3 | K85: 11 | L85: 44.6 | M85: 16.7 | N85: 0.7
A86: табл 4/302/2004 | B86: Каша рисовая молочная с маслом сливочным | C86: 200/5 | D86: 9.8 | E86: 8.8 | F86: 36.8 | G86: 209.9 | H86: 0.03 | I86: 0.52 | J86: 23.7 | K86: 0.2 | L86: 107 | M86: 94.2 | N86: 17.4 | O86: 0.2
A87: № 686/2004 | B87: Чай с сахаром,с урюком | C87: 200/15/7 | D87: 0.2 | E87: 0.1 | F87: 32.6 | G87: 263 | I87: 1.12 | L87: 2.9 | M87: 1.3 | N87: 0.7 | O87: 0.08
A88: табл 6 стр 144 Дели +,2012 | B88: Хлеб сельский/белый | C88: 20/20 | D88: 2.9 | E88: 0.8 | F88: 17 | G88: 90 | H88: 0.04 | K88: 0.4 | L88: 9.4 | M88: 42 | N88: 12 | O88: 1.04
B89: Итого: | C89: 580 | D89: =SUM(D85:D88) -> 16.4 | E89: =SUM(E85:E88) -> 42.2 | F89: 259.4 | G89: 563.0 | H89: 0.1 | I89: 10.1 | J89: 24.0 | K89: 11.6 | L89: 163.9 | M89: 154.2 | N89: 30.8 | O89: 1.3
B91: ПЯТНИЦА
B92: Меню дополнительного питания
A93: № 124/2004 | B93: Щи из свежей капусты с картофелем, сметаной, мясом | C93: 250/10/11 | D93: 4.16 | E93: 9.2 | F93: 96 | G93: 0.02 | H93: 8 | I93: 14.7 | J93: 0.3 | K93: 23.9 | L93: 39 | M93: 13 | N93: 0.54 | O93: 1.9
A94: табл 4/302/2004 | B94: Каша геркулесовая молочная с маслом сливочным | C94: 200/5 | D94: 11.9 | E94: 6.1 | F94: 35.6 | G94: 230 | H94: 0.1 | I94: 0.17 | J94: 54.6 | K94: 0.5 | L94: 69.8 | M94: 130 | N94: 37.1 | O94: 0.87
A95: № 639/2004 | B95: Напиток из сухофруктов | C95: 200 | D95: 0.85 | E95: 0.03 | F95: 34.8 | G95: 143 | H95: 0.06 | K95: 0.1 | L95: 16.5 | M95: 25.8 | N95: 8.4 | O95: 0.7
A96: табл 6 стр 144 Дели +,2012 | B96: Хлеб сельский/белый | C96: 20/20 | D96: 2.9 | E96: 0.8 | F96: 17 | G96: 90 | H96: 0.04 | K96: 0.4 | L96: 9.4 | M96: 42 | N96: 12 | O96: 1.04
B97: Итого: | C97: 716 | D97: =SUM(D93:D96) -> 19.81 | E97: =SUM(E93:E96) -> 16.13 | F97: 183.40 | G97: 463.02 | H97: 8.20 | I97: 14.87 | J97: 54.90 | K97: 24.90 | L97: 134.70 | M97: 210.80 | N97: 58.04 | O97: 4.51
B99: СУББОТА
B100: Меню дополнительного питания
A101: № 102/2017 | B101: Суп картофельный с фасолью | C101: 250 | D101: 5.49 | E101: 5.27 | F101: 16.54 | G101: 148.25 | H101: 0.23 | I101: 5.83 | K101: 2.43 | L101: 42.68 | M101: 88.10 | N101: 35.58 | O101: 2.05
A102: 174/ 2017 | B102: Каша молочная кукурузная с маслом сливочным | C102: 200/3 | D102: 7.6 | E102: 8.925 | F102: 50.74 | G102: 314.2 | H102: 0.09 | I102: 0.96 | J102: 42.8 | K102: 0.37 | L102: 137.75 | M102: 152.71 | N102: 31.61 | O102: 1.67
A103: №685/2004 | B103: Чай с сахаром | C103: 200/15 | D103: 0.2 | F103: 13.7 | G103: 53 | L103: 0.4 | O103: 0.4
A104: табл 6 стр 134 Дели +,2012 | B104: Батон высший сорт | C104: 30 | D104: 2.25 | E104: 0.87 | F104: 15.42 | G104: 79 | H104: 0.02 | K104: 0.2 | L104: 4.7 | M104: 21.1 | N104: 6.3 | O104: 0.52
B105: Итого: | C105: 698 | D105: =SUM(D101:D104) -> 15.54 | E105: =SUM(E101:E104) -> 15.07 | F105: 96.40 | G105: 594.45 | H105: 0.34 | I105: 6.79 | J105: 42.80 | K105: 3.00 | L105: 185.53 | M105: 261.91 | N105: 73.49 | O105: 4.64
B107: Всего: | C107: =C65+C73+C81+C89+C97+C105 -> 4116 | D107: 110.01 | E107: 158.24 | F107: 1038.14 | G107: 3474.81 | H107: 17.21 | I107: 72.34 | J107: 307.17 | K107: 69.32 | L107: 1078.83 | M107: 1453.35 | N107: 348.63 | O107: 20.53
B108: Всего за 12 дней: | C108: =C56+C107 -> 8597 | D108: 268.72 | E108: 300.81 | F108: 1,727.22 | G108: 8,051.57 | H108: 19.01 | I108: 116.35 | J108: 670.27 | K108: 88.86 | L108: 2,098.21 | M108: 3,501.41 | N108: 815.54 | O108: 46.85
B109: В среднем на 1 учащегося в день | C109: =C108/12 -> 716 | D109: =D108/12 -> 22.39 | E109: =E108/12 -> 25.07 | F109: 143.94 | G109: 670.96 | H109: 1.58 | I109: 9.70 | J109: 55.86 | K109: 7.41 | L109: 174.85 | M109: 291.78 | N109: 67.96 | O109: 3.90
